fUST/lending_fUST_20250506
["ID","MTS","AMOUNT","RATE_DAILY","PERIOD"]
[359988059,1746466175060,-500.0,0.00026229,2]
[359988060,1746466175086,-500.0,0.00026229,2]
[359988061,1746466175112,-500.0,0.00026229,2]
[359988062,1746466175139,-500.0,0.00026229,2]
[359988063,1746466175166,-207.9448929,0.00026229,2]
[359988064,1746466175194,-500.0,0.00026229,2]
[359988065,1746466175220,-500.0,0.00026229,2]
[359988066,1746466175248,-500.0,0.00026229,2]
[359988067,1746466175276,-500.0,0.00026229,2]
[359988068,1746466175303,-500.0,0.00026229,2]
[359988069,1746466175330,-500.0,0.00026229,2]
[359988070,1746466175357,-500.0,0.00026229,2]
[359988071,1746466175383,-500.0,0.00026229,2]
[359988072,1746466175412,-500.0,0.00026229,2]
[359988073,1746466175439,-400.0,0.00026229,2]
[359988074,1746466175467,-500.0,0.00026229,2]
[359988075,1746466175494,-500.0,0.00026229,2]
[359988076,1746466175521,-500.0,0.00026229,2]
[359988077,1746466175547,-500.0,0.00026229,2]
[359988078,1746466175573,-500.0,0.00026229,2]
[359988079,1746466175599,-500.0,0.00026229,2]
[359988080,1746466175624,-500.0,0.00026229,2]
[359988081,1746466175650,-500.0,0.00026229,2]
[359988082,1746466175676,-500.0,0.00026229,2]
[359988083,1746466175702,-500.0,0.00026229,2]
[359988084,1746466175729,-500.0,0.00026229,2]
[359988085,1746466175755,-500.0,0.00026229,2]
[359988086,1746466175782,-500.0,0.00026229,2]
[359988087,1746466175810,-500.0,0.00026229,2]
[359988088,1746466175835,-500.0,0.00026229,2]
[359988089,1746466175863,-500.0,0.00026229,2]
[359988090,1746466175889,-600.0,0.00026229,2]
[359988091,1746466175916,-500.0,0.00026229,2]
[359988092,1746466175938,-6710.0633751,0.0002623,2]
[359988093,1746466175959,-50000.0,0.0002623,2]
[359988094,1746466175981,-152.0,0.00026258,2]
[359988095,1746466176003,-308.20543075,0.00026378,2]
[359988096,1746466176148,-45913.3053666,0.00026379,2]
[359988097,1746466176169,-7263.92484839,0.0002638,2]
[359988098,1746466176192,-1295.80383713,0.00026383,15]
[359988099,1746466176213,-2362.82215666,0.00026465,2]
[359988100,1746466176234,-38465.0327471,0.0002648,2]
[359988101,1746466176259,-2846.00894333,0.0002648,2]
[359988102,1746466176279,-625.46,0.0002649,3]
[359988103,1746466176301,-500.0,0.000265,2]
[359988104,1746466176324,-500.0,0.000265,2]
[359988105,1746466176346,-176.134257,0.0002664,2]
[359988106,1746466176368,-1295.80383713,0.00026866,16]
[359988107,1746466176387,-500.0,0.0002688,2]
[359988108,1746466176406,-500.0,0.0002688,2]
[359988109,1746466176425,-500.0,0.0002688,2]
[359988110,1746466176445,-500.0,0.0002688,2]
[359988111,1746466176465,-502.92964946,0.0002688,2]
[359988112,1746466176485,-504.09662776,0.0002688,2]
[359988113,1746466176506,-500.0,0.0002688,2]
[359988114,1746466176526,-500.0,0.0002688,2]
[359988115,1746466176546,-500.0,0.00027025,2]
[359988116,1746466176565,-500.0,0.00027025,2]
[359988117,1746466176585,-506.31748841,0.00027025,2]
[359988118,1746466176604,-500.0,0.00027025,2]
[359988119,1746466176623,-507.49178017,0.00027025,2]
[359988120,1746466176642,-531.5906901,0.00027025,2]
[359988121,1746466176662,-500.0,0.0002705,2]
[359988122,1746466176681,-500.0,0.0002705,2]
[359988123,1746466176701,-500.0,0.0002705,2]
[359988124,1746466176720,-500.0,0.0002705,2]
[359988125,1746466176739,-200.91653079,0.0002705,2]
[359988126,1746466176759,-500.0,0.0002705,2]
[359988127,1746466176778,-372.89666023,0.0002705,2]
[359988128,1746466176798,-500.0,0.00027075,2]
[359988129,1746466176818,-190.8,0.00027082,2]
[359988130,1746466176837,-190.8,0.00027082,2]
[359988131,1746466176857,-190.8,0.00027082,2]
[359988132,1746466176877,-190.8,0.00027082,2]
[359988133,1746466176897,-190.8,0.00027082,2]
[359988134,1746466176916,-190.8,0.00027082,2]
[359988135,1746466176936,-190.8,0.00027082,2]
[359988136,1746466176956,-190.8,0.00027082,2]
[359988137,1746466176977,-190.8,0.00027082,2]
[359988138,1746466176998,-420.0,0.00027082,2]
[359988139,1746466177019,-420.0,0.00027082,2]
[359988140,1746466177039,-1680.0,0.00027204,2]
[359988141,1746466177059,-500.0,0.00027267,2]
[359988142,1746466177079,-502.67552518,0.00027267,2]
[359988143,1746466177099,-500.0,0.000273,2]
[359988144,1746466177121,-1295.80383713,0.00027348,16]
[359988145,1746466177141,-189.432403,0.00027397,2]
[359988146,1746466177162,-189.6811501,0.00027397,120]
[359988147,1746466177182,-500.0,0.00027397,5]
[359988148,1746466177205,-1295.80383713,0.00027831,17]
[359988149,1746466177226,-1987.73830792,0.00027898,2]
[359988150,1746466177248,-7263.92484839,0.00027979,2]
[359988151,1746466177270,-500.0,0.000283,5]
[359988152,1746466177293,-1295.80383713,0.00028314,18]
[359988153,1746466177313,-629.86149274,0.00028767,5]
[359988154,1746466177338,-1295.80383713,0.00028797,19]
[359988155,1746466177358,-38465.0327471,0.00028801,2]
[359988156,1746466177377,-2846.00894333,0.00028801,2]
[359988157,1746466177398,-2026.41,0.00028801,3]
[359988158,1746466177421,-1013.2,0.00028801,3]
[359988159,1746466177441,-506.6,0.00028801,3]
[359988160,1746466177461,-253.3,0.00028801,3]
[359988161,1746466177482,-759.95,0.00028801,3]
[359988162,1746466177501,-8712.2583697,0.00028811,2]
[359988163,1746466177521,-24900.0,0.00028811,2]
[359988164,1746466177541,-3164.3588524,0.00028811,2]
[359988165,1746466177561,-938.056371,0.00028811,2]
[359988166,1746466177580,-5000.0,0.00028965,2]
[359988167,1746466177600,-1342.0,0.00029,2]
[359988168,1746466177619,-665.0514621,0.00029011,120]
[359988169,1746466177641,-1295.80383713,0.00029279,20]
[359988170,1746466177661,-587.0,0.00029339,2]
[359988171,1746466177681,-303.0,0.000295,2]
[359988172,1746466177701,-7263.92484839,0.00029578,2]
[359988173,1746466177722,-913.0,0.00029604,2]
[359988174,1746466177744,-1295.80383713,0.00029762,21]
[359988175,1746466177764,-200.0,0.000298,120]
[359988176,1746466177785,-405.74292287,0.00030137,60]
[359988177,1746466177807,-38465.0327471,0.00030161,2]
[359988178,1746466177827,-2846.00894333,0.00030161,2]
[359988179,1746466177847,-4052.82,0.00030171,3]
[359988180,1746466177868,-2026.4,0.00030171,3]
[359988181,1746466177888,-1013.2,0.00030171,3]
[359988182,1746466177911,-506.6,0.00030171,3]
[359988183,1746466177931,-160.0,0.00030171,3]
[359988184,1746466177952,-182.23035355,0.00030171,3]
[359988185,1746466177974,-160.0,0.00030171,3]
[359988186,1746466177993,-160.0,0.00030171,3]
[359988187,1746466178014,-421.83547488,0.00030171,3]
[359988188,1746466178037,-160.0,0.00030171,3]
[359988189,1746466178057,-841.77443764,0.00030171,3]
[359988190,1746466178077,-160.0,0.00030171,3]
[359988191,1746466178097,-12607.13495863,0.00030171,3]
[359988192,1746466178120,-1295.80383713,0.00030245,22]
[359988193,1746466178140,-160.0,0.00030721,2]
[359988194,1746466178160,-160.0,0.00030721,2]
[359988195,1746466178180,-160.0,0.00030721,2]
[359988196,1746466178204,-1295.80383713,0.00030728,23]
[359988197,1746466178334,-7592.15509758,0.0003099,2]
[359988198,1746466178355,-615.87836199,0.00031043,2]
[359988199,1746466178375,-7263.92484839,0.00031177,2]
[359988200,1746466178397,-1295.80383713,0.0003121,24]
[359988201,1746466178417,-500.0,0.00031233,2]
[359988202,1746466178437,-615.87836199,0.00031275,2]
[359988203,1746466178458,-67656.11016085,0.0003132,2]
[359988204,1746466178477,-5000.0,0.00031465,2]
[359988205,1746466178497,-200.0,0.000315,120]
[359988206,1746466178516,-615.87836199,0.00031535,2]
[359988207,1746466178537,-151.0,0.000316,13]
[359988208,1746466178559,-1295.80383713,0.00031693,25]
[359988209,1746466178582,-823.0,0.00031784,2]
[359988210,1746466178605,-500.0,0.00031979,5]
[359988211,1746466178627,-32028.92745344,0.0003198,2]
[359988253,1746466232141,-500.0,0.00026229,2]
[359988255,1746466232151,-466.534856,0.00026229,2]
[359988257,1746466232161,-251.42944195,0.00029069,2]
[359988259,1746466232170,-182.23035355,0.00030171,3]
[359988261,1746466232180,-179.55112219,0.00030506,5]
[359988263,1746466232190,-400.0,0.00031979,2]
[359988265,1746466232199,-1600.0,0.00031979,3]
[359988267,1746466232209,-400.0,0.00031979,3]
[359988269,1746466232219,-6436.10529366,0.0003198,2]
[359988271,1746466232228,-2846.00894333,0.0003198,2]
[359988273,1746466232238,-615.87836199,0.0003198,2]
[359988275,1746466232248,-615.87836199,0.00032084,2]
[359988277,1746466232259,-1295.80383713,0.00032176,26]
[359988280,1746466232273,-151.0,0.000322,13]
[359988282,1746466232283,-26466.79519841,0.000322,2]
[359988285,1746466232308,-2320.77286622,0.000322,2]
[359988288,1746466232318,-1000.0,0.00032329,2]
[359988291,1746466232327,-1000.0,0.00032359,5]
[359988294,1746466232337,-548.35017898,0.00032359,5]
[359988297,1746466232346,-1012.11058216,0.00032359,5]
[359988300,1746466232356,-1000.0,0.00032359,5]
[359988303,1746466232365,-1000.0,0.00032359,5]
[359988306,1746466232375,-504.43605205,0.00032504,5]
[359988309,1746466232385,-1000.0,0.00032504,2]
[359988312,1746466232394,-500.0,0.00032529,5]
[359988315,1746466232403,-1000.0,0.00032529,5]
[359988317,1746466232412,-880.57400032,0.00032529,5]
[359988319,1746466232422,-1000.0,0.00032554,5]
[359988320,1746466232433,-151.0,0.00032572,2]
[359988322,1746466232442,-197.05513197,0.00032572,2]
[359988324,1746466232452,-151.0,0.00032572,2]
[359988325,1746466232462,-151.46602498,0.00032572,2]
[359988327,1746466232472,-207.4,0.00032572,2]
[359988329,1746466232482,-615.87836199,0.00032579,2]
[359988331,1746466232492,-254.00213827,0.0003259,2]
[359988333,1746466232502,-2251.34019744,0.0003259,2]
[359988334,1746466232511,-254.00213825,0.00032635,2]
[359988335,1746466232521,-1295.80383713,0.00032659,27]
[359988336,1746466232530,-254.00213825,0.00032679,2]
[359988337,1746466232539,-39419.40313448,0.0003269,2]
[359988338,1746466232551,-9433.74176179,0.0003269,2]
[359988339,1746466232562,-4319.5036461,0.0003269,2]
[359988355,1746466238227,-200.0,0.000298,120]
[359988356,1746466238238,-215.62693321,0.0003269,2]
[359988357,1746466238969,-23541.79001862,0.0003269,2]
[359988358,1746466238979,-5692.01788666,0.0003269,2]
[359988359,1746466238988,-151.0,0.0003269,7]
[359988360,1746466238998,-151.0,0.0003269,7]
[359988361,1746466239011,-79999.999999,0.000327,4]
[359988362,1746466239021,-151.0,0.000327,12]
[359988363,1746466239031,-151.0,0.000327,11]
[359988364,1746466239041,-151.0,0.000327,14]
[359988365,1746466239051,-151.0,0.000327,18]
[359988366,1746466239061,-867.69465666,0.00032746,2]
[359988367,1746466239070,-160.0,0.00032762,2]
[359988368,1746466239080,-421.83547488,0.00032762,2]
[359988369,1746466239089,-250.0,0.00032776,2]
[359988370,1746466239099,-1000.0,0.00032776,2]
[359988371,1746466239109,-7263.92484839,0.00032776,2]
[359988372,1746466239118,-615.878362,0.00032782,2]
[359988373,1746466239128,-151.0,0.000328,7]
[359988374,1746466239138,-151.0,0.000328,19]
[359988375,1746466239148,-151.0,0.000328,12]
[359988376,1746466239158,-151.0,0.000328,16]
[359988377,1746466239167,-151.0,0.000328,14]
[359988378,1746466239177,-151.0,0.000328,16]
[359988379,1746466239187,-160.0,0.00032855,2]
[359988380,1746466239197,-38465.0327471,0.00032856,2]
[359988381,1746466239206,-5692.01788666,0.00032856,2]
[359988382,1746466239216,-1018.515784,0.00032856,2]
[359988383,1746466239225,-151.0,0.00032856,7]
[359988384,1746466239235,-151.0,0.00032856,7]
[359988385,1746466239245,-841.77443764,0.00032861,2]
[359988386,1746466239255,-226.343763,0.00032862,7]
[359988387,1746466239267,-226.343763,0.00032862,7]
[359988388,1746466239278,-151.0,0.00032862,7]
[359988389,1746466239287,-151.0,0.00032862,7]
[359988390,1746466239297,-151.0,0.00032862,7]
[359988391,1746466239307,-153.256057,0.00032862,7]
[359988392,1746466239317,-205.762969,0.00032862,7]
[359988393,1746466239326,-151.0,0.00032862,7]
[359988394,1746466239337,-151.0,0.00032862,7]
[359988395,1746466239347,-31306.0983766,0.00032866,2]
[359988396,1746466239357,-211.03,0.00032866,3]
[359988397,1746466239366,-151.0,0.00032866,7]
[359988398,1746466239376,-151.0,0.00032866,7]
[359988399,1746466239386,-500.0,0.00032873,5]
[359988400,1746466239395,-492.9552646,0.00032873,5]
[359988401,1746466239405,-502.00592067,0.00032873,5]
[359988402,1746466239415,-629.84400284,0.00032873,5]
[359988403,1746466239424,-500.0,0.00032873,5]
[359988404,1746466239433,-500.0,0.00032873,5]
[359988405,1746466239443,-500.99254529,0.00032873,5]
[359988406,1746466239452,-500.0,0.00032873,5]
[359988407,1746466239462,-500.0,0.00032873,5]
[359988408,1746466239472,-500.0,0.00032873,5]
[359988409,1746466239482,-500.0,0.00032873,5]
[359988410,1746466239492,-501.16195604,0.00032873,5]
[359988411,1746466239502,-503.0343708,0.00032873,5]
[359988412,1746466239512,-500.0,0.00032873,5]
[359988413,1746466239521,-500.0,0.00032873,5]
[359988414,1746466239530,-502.61423436,0.00032873,5]
[359988415,1746466239539,-500.0,0.00032873,5]
[359988416,1746466239549,-500.0,0.00032873,5]
[359988417,1746466239559,-500.0,0.00032873,5]
[359988418,1746466239569,-502.36159815,0.00032873,5]
[359988419,1746466239578,-500.0,0.00032873,5]
[359988420,1746466239588,-502.95744587,0.00032873,5]
[359988421,1746466239598,-596.22253797,0.00032873,5]
[359988422,1746466239607,-500.0,0.00032873,5]
[359988423,1746466239617,-500.0,0.00032873,5]
[359988424,1746466239626,-500.0,0.00032873,5]
[359988425,1746466239635,-500.0,0.00032873,5]
[359988426,1746466239644,-500.08320944,0.00032873,5]
[359988427,1746466239654,-502.23333529,0.00032873,5]
[359988428,1746466239663,-151.90570102,0.00032873,5]
[359988429,1746466239673,-636.38807985,0.00032873,5]
[359988430,1746466239683,-500.0,0.00032873,5]
[359988431,1746466239693,-500.0,0.00032873,5]
[359988432,1746466239702,-500.0,0.00032873,5]
[359988433,1746466239712,-500.0,0.00032873,5]
[359988434,1746466239722,-500.0,0.00032873,5]
[359988435,1746466239731,-500.0,0.00032873,5]
[359988436,1746466239740,-500.0,0.00032873,5]
[359988437,1746466239750,-500.0,0.00032873,5]
[359988438,1746466239760,-226.343763,0.00032873,7]
[359988439,1746466239770,-226.343763,0.00032873,7]
[359988440,1746466239780,-151.0,0.00032873,7]
[359988441,1746466239789,-151.0,0.00032873,7]
[359988442,1746466239798,-151.0,0.00032873,7]
[359988443,1746466239808,-191.981954,0.00032873,7]
[359988444,1746466239817,-152.732938,0.00032876,7]
[359988445,1746466239827,-151.0,0.00032876,7]
[359988446,1746466239836,-151.0,0.00032876,7]
[359988447,1746466239846,-151.0,0.00032876,7]
[359988448,1746466239855,-151.0,0.00032876,7]
[359988450,1746466239864,-151.0,0.00032876,7]
[359988451,1746466239874,-185.817685,0.00032876,7]
[359988452,1746466239883,-151.0,0.00032876,7]
[359988453,1746466239893,-227.643313,0.00032876,7]
[359988454,1746466239903,-292.47179281,0.00032876,8]
[359988455,1746466239913,-227.19611969,0.00032876,8]
[359988456,1746466239923,-400.0,0.00032876,8]
[359988457,1746466239932,-1692.68,0.00032876,8]
[359988458,1746466239941,-408.19,0.00032876,8]
[359988459,1746466239952,-151.0,0.00032876,7]
[359988460,1746466239961,-400.0,0.00032876,8]
[359988461,1746466239971,-400.0,0.00032876,8]
[359988462,1746466239981,-400.97828144,0.00032876,8]
[359988463,1746466239991,-151.0,0.00032876,7]
[359988464,1746466240001,-151.0,0.00032876,7]
[359988465,1746466240011,-151.0,0.00032876,7]
[359988467,1746466240020,-151.0,0.00032876,7]
[359988468,1746466240030,-151.0,0.00032876,7]
[359988470,1746466240039,-400.0,0.00032876,8]
[359988472,1746466240049,-400.0,0.00032876,8]
[359988473,1746466240059,-400.0,0.00032876,8]
[359988474,1746466240068,-400.0,0.00032876,8]
[359988476,1746466240078,-151.0,0.00032876,7]
[359988477,1746466240087,-400.0,0.00032876,8]
[359988478,1746466240097,-516.37898553,0.00032876,8]
[359988479,1746466240107,-1000.0,0.00032876,8]
[359988480,1746466240116,-301.64541736,0.00032876,8]
[359988481,1746466240126,-400.0,0.00032876,8]
[359988482,1746466240136,-621.86,0.00032876,8]
[359988483,1746466240146,-544.87565629,0.00032876,8]
[359988484,1746466240155,-151.25648963,0.00032876,8]
[359988485,1746466240166,-400.0,0.00032876,8]
[359988486,1746466240176,-152.155241,0.00032876,7]
[359988488,1746466240185,-400.0,0.00032876,8]
[359988489,1746466240195,-400.0,0.00032876,8]
[359988490,1746466240204,-400.0,0.00032876,8]
[359988491,1746466240214,-168.0969,0.00032876,7]
[359988492,1746466240223,-151.0,0.00032876,7]
[359988493,1746466240232,-151.0,0.00032876,7]
[359988495,1746466240242,-400.0,0.00032876,8]
[359988497,1746466240253,-151.0,0.00032876,7]
[359988498,1746466240266,-168.0969,0.00032876,7]
[359988500,1746466240276,-151.0,0.00032876,7]
[359988502,1746466240286,-400.0,0.00032876,8]
[359988504,1746466240295,-400.0,0.00032876,8]
[359988506,1746466240305,-497.81,0.00032876,8]
[359988508,1746466240316,-400.0,0.00032876,8]
[359988510,1746466240327,-480.51,0.00032876,8]
[359988512,1746466240336,-400.0,0.00032876,8]
[359988514,1746466240347,-263.8637823,0.00032876,8]
[359988516,1746466240357,-400.0,0.00032876,8]
[359988518,1746466240366,-441.76,0.00032876,8]
[359988520,1746466240375,-400.0,0.00032876,8]
[359988522,1746466240384,-400.0,0.00032876,8]
[359988524,1746466240394,-400.0,0.00032876,8]
[359988526,1746466240403,-400.0,0.00032876,8]
[359988537,1746466240503,-663.75,0.00032876,8]
[359988539,1746466240513,-468.83,0.00032876,8]
[359988541,1746466240523,-400.0,0.00032876,8]
[359988543,1746466240532,-400.0,0.00032876,8]
[359988545,1746466240541,-400.0,0.00032876,8]
[359988547,1746466240550,-400.0,0.00032876,8]
[359988549,1746466240559,-400.0,0.00032876,8]
[359988551,1746466240569,-400.0,0.00032876,8]
[359988553,1746466240578,-400.0,0.00032876,8]
[359988555,1746466240587,-400.0,0.00032876,8]
[359988557,1746466240596,-400.0,0.00032876,8]
[359988558,1746466240605,-400.0,0.00032876,8]
[359988561,1746466240614,-650.06,0.00032876,8]
[359988562,1746466240623,-400.0,0.00032876,8]
[359988564,1746466240633,-400.0,0.00032876,8]
[359988566,1746466240642,-401.42651592,0.00032876,8]
[359988568,1746466240651,-400.0,0.00032876,8]
[359988571,1746466240661,-400.0,0.00032876,8]
[359988573,1746466240670,-400.0,0.00032876,8]
[359988574,1746466240679,-400.0,0.00032876,8]
[359988577,1746466240689,-400.0,0.00032876,8]
[359988579,1746466240698,-424.49,0.00032876,8]
[359988580,1746466240707,-183.373749,0.00032876,2]
[359988583,1746466240717,-183.373749,0.00032876,2]
[359988585,1746466240726,-400.0,0.00032876,8]
[359988587,1746466240736,-400.0,0.00032876,8]
[359988589,1746466240745,-151.0,0.00032876,7]
[359988591,1746466240756,-151.0,0.00032876,7]
[359988592,1746466240765,-400.0,0.00032876,8]
[359988594,1746466240775,-400.0,0.00032876,8]
[359988598,1746466240784,-400.0,0.00032876,8]
[359988600,1746466240793,-400.0,0.00032876,8]
[359988603,1746466240802,-584.19,0.00032876,8]
[359988607,1746466240815,-400.0,0.00032876,8]
[359988611,1746466240826,-400.0,0.00032876,8]
[359988614,1746466240836,-544.01,0.00032876,8]
[359988617,1746466240845,-151.0,0.00032876,7]
[359988619,1746466240854,-151.0,0.00032876,7]
[359988621,1746466240866,-248.84778368,0.00032876,8]
[359988623,1746466240875,-413.76841128,0.00032876,8]
[359988625,1746466240884,-151.0,0.00032876,7]
[359988627,1746466240893,-151.0,0.00032876,7]
[359988629,1746466240902,-156.939379,0.00032876,7]
[359988631,1746466240911,-467.76724636,0.00032876,8]
[359988633,1746466240920,-400.0,0.00032876,8]
[359988635,1746466240929,-400.0,0.00032876,8]
[359988636,1746466240939,-153.247129,0.00032876,7]
[359988638,1746466240948,-400.0,0.00032876,8]
[359988640,1746466240957,-400.0,0.00032876,8]
[359988642,1746466240966,-151.0,0.00032876,7]
[359988644,1746466240976,-151.0,0.00032876,7]
[359988645,1746466240985,-400.0,0.00032876,8]
[359988647,1746466240994,-151.0,0.00032876,7]
[359988649,1746466241004,-400.0,0.00032876,8]
[359988650,1746466241013,-151.0,0.00032876,7]
[359988651,1746466241023,-151.0,0.00032876,7]
[359988652,1746466241032,-470.09135568,0.00032876,8]
[359988653,1746466241041,-445.11,0.00032876,8]
[359988654,1746466241051,-400.0,0.00032876,8]
[359988655,1746466241061,-400.0,0.00032876,8]
[359988656,1746466241070,-401.78743739,0.00032876,5]
[359988657,1746466241079,-400.0,0.00032876,8]
[359988658,1746466241088,-400.0,0.00032876,8]
[359988659,1746466241097,-153.55827728,0.00032876,8]
[359988660,1746466241107,-400.0,0.00032876,8]
[359988661,1746466241116,-400.0,0.00032876,8]
[359988662,1746466241126,-160.0,0.00032876,7]
[359988663,1746466241135,-400.0,0.00032876,8]
[359988664,1746466241144,-400.0,0.00032876,8]
[359988665,1746466241154,-400.0,0.00032876,8]
[359988666,1746466241163,-151.0,0.00032876,7]
[359988667,1746466241172,-400.0,0.00032876,8]
[359988668,1746466241182,-400.0,0.00032876,8]
[359988669,1746466241194,-151.0,0.00032876,7]
[359988670,1746466241203,-151.0,0.00032876,7]
[359988671,1746466241212,-400.0,0.00032876,8]
[359988672,1746466241221,-159.111363,0.00032876,7]
[359988673,1746466241231,-400.0,0.00032876,8]
[359988674,1746466241240,-400.0,0.00032876,8]
[359988675,1746466241249,-401.67899492,0.00032876,8]
[359988676,1746466241259,-400.0,0.00032876,2]
[359988677,1746466241270,-400.0,0.00032876,8]
[359988678,1746466241279,-416.6816665,0.00032876,8]
[359988679,1746466241288,-596.14,0.00032876,8]
[359988680,1746466241298,-400.0,0.00032876,8]
[359988681,1746466241308,-400.0,0.00032876,8]
[359988682,1746466241317,-407.26,0.00032876,8]
[359988683,1746466241326,-400.0,0.00032876,8]
[359988684,1746466241335,-207.56471358,0.00032876,8]
[359988685,1746466241346,-400.0,0.00032876,8]
[359988686,1746466241355,-400.0,0.00032876,8]
[359988687,1746466241364,-400.0,0.00032876,8]
[359988688,1746466241374,-400.0,0.00032876,8]
[359988689,1746466241383,-400.0,0.00032876,8]
[359988690,1746466241393,-406.0448939,0.00032876,8]
[359988691,1746466241403,-256.57951056,0.00032876,8]
[359988692,1746466241412,-418.32395766,0.00032876,8]
[359988693,1746466241421,-151.0,0.00032876,7]
[359988694,1746466241431,-400.0,0.00032876,8]
[359988695,1746466241440,-238.807978,0.00032876,7]
[359988696,1746466241449,-400.0,0.00032876,8]
[359988697,1746466241459,-402.63366468,0.00032876,8]
[359988698,1746466241468,-400.0,0.00032876,8]
[359988699,1746466241477,-193.329014,0.00032876,7]
[359988700,1746466241486,-193.329014,0.00032876,7]
[359988701,1746466241495,-193.329014,0.00032876,7]
[359988702,1746466241505,-723.92,0.00032876,8]
[359988703,1746466241515,-406.9331709,0.00032876,8]
[359988704,1746466241524,-400.0,0.00032876,2]
[359988705,1746466241533,-264.93869,0.00032876,7]
[359988706,1746466241542,-400.0,0.00032876,8]
[359988707,1746466241554,-264.93869,0.00032876,7]
[359988708,1746466241564,-264.93869,0.00032876,7]
[359988709,1746466241574,-193.329014,0.00032876,7]
[359988710,1746466241583,-193.329014,0.00032876,7]
[359988711,1746466241593,-193.329014,0.00032876,7]
[359988712,1746466241602,-400.0,0.00032876,8]
[359988713,1746466241612,-151.0,0.00032876,7]
[359988714,1746466241621,-151.0,0.00032876,7]
[359988715,1746466241630,-400.0,0.00032876,8]
[359988716,1746466241640,-160.579925,0.00032876,7]
[359988717,1746466241649,-264.93869,0.00032876,7]
[359988718,1746466241658,-264.93869,0.00032876,7]
[359988719,1746466241667,-400.0,0.00032876,8]
[359988720,1746466241677,-264.93869,0.00032876,7]
[359988721,1746466241687,-173.26062494,0.00032876,8]
[359988722,1746466241699,-601.89,0.00032876,8]
[359988723,1746466241709,-400.0,0.00032876,8]
[359988724,1746466241719,-400.0,0.00032876,8]
[359988725,1746466241729,-502.32921261,0.00032876,8]
[359988726,1746466241739,-516.84,0.00032876,8]
[359988727,1746466241748,-151.0,0.00032876,7]
[359988728,1746466241759,-151.0,0.00032876,7]
[359988729,1746466241768,-151.0,0.00032876,7]
[359988730,1746466241777,-400.0,0.00032876,8]
[359988731,1746466241786,-403.03555728,0.00032876,8]
[359988732,1746466241795,-400.0,0.00032876,8]
[359988733,1746466241806,-201.95468706,0.00032876,8]
[359988734,1746466241815,-400.0,0.00032876,8]
[359988735,1746466241825,-400.0,0.00032876,8]
[359988736,1746466241921,-744.57,0.00032876,8]
[359988737,1746466241931,-400.0,0.00032876,8]
[359988738,1746466241943,-151.0,0.00032876,7]
[359988739,1746466241953,-151.0,0.00032876,7]
[359988740,1746466241963,-400.0,0.00032876,8]
[359988741,1746466241972,-151.0,0.00032876,7]
[359988742,1746466241982,-856.46,0.00032876,8]
[359988743,1746466241991,-434.46404568,0.00032876,8]
[359988744,1746466242001,-400.0,0.00032876,8]
[359988745,1746466242011,-400.0,0.00032876,8]
[359988746,1746466242020,-400.0,0.00032876,8]
[359988747,1746466242030,-763.86,0.00032876,8]
[359988748,1746466242039,-500.0,0.00032876,8]
[359988749,1746466242048,-400.0,0.00032876,8]
[359988750,1746466242058,-400.0,0.00032876,8]